bitfinex/quotes_SOLUSD_20220117
["timestamp","ask_amount","ask_price","bid_price","bid_amount"]
[1642421403765,1.93945166,142.08,141.98,0.25]
[1642421403969,1.93945166,142.08,141.98,10.37]
[1642421404166,1.93945166,142.09,141.99,1.23991535]
[1642421404366,1.93945166,142.09,142.0,10.12]
[1642421404766,1.93945166,142.09,142.01,48.92155179]
[1642421405368,1.93945166,142.09,142.02,1.23991535]
[1642421405968,1.93945166,142.09,142.01,37.12323644]
[1642421406167,44.97666882,142.1,142.01,37.12323644]
[1642421406571,44.97666882,142.1,142.04,60.00753561]
[1642421408178,1.93945166,142.12,142.04,60.00753561]
[1642421409580,1.93945166,142.13,142.04,60.00753561]
[1642421410978,1.93945166,142.13,142.04,68.53553561]
[1642421411181,1.93945166,142.13,142.07,10.5539]
[1642421411490,1.93945166,142.13,142.07,17.4949]
[1642421411879,1.93945166,142.13,142.08,45.70942529]
[1642421412482,1.93945166,142.13,142.09,10.5523]
[1642421412881,1.93945166,142.13,142.1,70.26]
[1642421413080,3.63337581,142.16,142.11,101.0643]
[1642421413282,3.63337581,142.16,142.12,70.26]
[1642421413481,3.63337581,142.16,142.13,35.76933496]
[1642421413680,45.72389198,142.22,142.13,35.76933496]
[1642421413681,49.35726779,142.22,142.13,35.76933496]
[1642421414105,49.35726779,142.22,142.13,41.20433496]
[1642421414308,49.35726779,142.22,142.13,51.75353496]
[1642421415305,45.72389198,142.22,142.13,51.75353496]
[1642421416407,45.72389198,142.22,142.13,46.31853496]
[1642421418310,20.6687,142.25,142.13,46.31853496]
[1642421418509,20.6687,142.25,142.13,69.95763496]
[1642421419413,39.39944962,142.24,142.13,69.95763496]
[1642421423821,49.94884962,142.24,142.13,69.95763496]
[1642421424924,49.94884962,142.24,142.13,34.1883]
[1642421425523,51.68789387,142.24,142.11,10.5508]
[1642421425825,70.26,142.23,142.09,24.4486]
[1642421426025,10.5537,142.19,142.09,24.4486]
[1642421426223,36.86947998,142.18,142.09,24.4486]
[1642421427524,47.42317998,142.18,142.09,35.0008]
[1642421428123,47.42317998,142.18,142.09,24.4486]
[1642421429128,47.42317998,142.18,142.1,35.80846246]
[1642421430626,47.42317998,142.18,142.09,24.4486]
[1642421431028,53.22217998,142.18,142.09,24.4486]
[1642421431226,63.34217998,142.18,142.09,24.4486]
[1642421432025,63.34217998,142.18,142.06,53.40023712]
[1642421432226,63.34217998,142.18,142.06,76.41893712]
[1642421432655,63.34217998,142.18,142.06,65.86433712]
[1642421432828,57.54317998,142.18,142.06,65.86433712]
[1642421434429,64.68517998,142.18,142.03,10.12]
[1642421434630,10.5589,142.13,142.02,23.2735]
[1642421434830,18.7099,142.13,142.02,23.2735]
[1642421435430,45.34681946,142.12,142.03,36.06410857]
[1642421435830,10.5593,142.11,142.03,36.06410857]
[1642421436031,33.825,142.14,142.03,36.06410857]
[1642421436232,33.825,142.14,142.03,37.30402392]
[1642421436430,33.825,142.14,142.04,0.25]
[1642421436431,10.12,142.14,142.04,0.25]
[1642421436832,40.29925432,142.16,142.05,1.23991535]
[1642421437033,40.29925432,142.16,142.06,41.1362142]
[1642421437434,40.29925432,142.16,142.06,51.6910142]
[1642421439435,40.29925432,142.16,142.07,0.25]
[1642421440035,50.85455432,142.16,142.07,0.25]
[1642421441634,50.85455432,142.16,142.06,10.5548]
[1642421441839,50.85455432,142.16,142.05,1.23991535]
[1642421442035,50.85455432,142.16,142.04,34.2109]
[1642421442234,10.12,142.15,142.04,23.6549]
[1642421442438,10.5583,142.12,142.04,23.6549]
[1642421442637,41.6246087,142.11,142.04,23.6549]
[1642421443036,41.6246087,142.11,142.04,60.34882702]
[1642421443437,33.4423,142.15,142.04,60.34882702]
[1642421443838,33.4423,142.15,142.05,0.25]
[1642421444239,10.12,142.15,142.05,10.8051]
[1642421444440,36.00362047,142.14,142.05,12.04501535]
[1642421444640,35.00362047,142.14,142.05,12.04501535]
[1642421446241,35.00362047,142.14,142.05,10.8051]
[1642421447545,35.00362047,142.14,142.05,10.5551]
[1642421448474,33.2442,142.16,142.05,10.5551]
[1642421449479,34.76438514,142.15,142.05,10.5551]
[1642421449875,34.76438514,142.15,142.05,11.79501535]
[1642421450771,34.76438514,142.15,142.05,10.5551]
[1642421451078,55.44038514,142.15,142.04,23.6549]
[1642421454577,54.94038514,142.15,142.04,23.6549]
[1642421455881,61.48738514,142.15,142.0,27.93033085]
[1642421456081,22.522,142.14,142.0,68.27325261]
[1642421456284,10.5604,142.1,142.0,68.27325261]
[1642421456479,43.33041573,142.09,142.0,27.43033085]
[1642421456885,43.33041573,142.09,142.0,23.4571]
[1642421457484,43.33041573,142.09,142.01,48.47533776]
[1642421458580,53.89101573,142.09,142.01,48.47533776]
[1642421462183,53.89101573,142.09,142.0,23.4571]
[1642421463285,53.89101573,142.09,142.01,48.99147451]
[1642421465190,53.89101573,142.09,142.0,23.4571]
[1642421465790,61.92201573,142.09,142.0,23.4571]
[1642421465989,61.92201573,142.09,141.97,3.97323085]
[1642421466189,10.5638,142.05,141.97,3.97323085]
[1642421466432,37.99853617,142.04,141.97,3.97323085]
[1642421467490,37.99853617,142.04,141.95,46.5662]
[1642421467691,48.56293617,142.04,141.95,46.5662]
[1642421467891,48.56293617,142.04,141.95,86.10793847]
[1642421471400,56.63493617,142.04,141.92,59.0973879]
[1642421471798,56.63493617,142.04,141.92,3.97323085]
[1642421471999,56.63493617,142.04,141.91,142.00043085]
[1642421472200,56.63493617,142.04,141.92,48.98031613]
[1642421472802,10.12,142.03,141.92,48.98031613]
[1642421473101,10.5676,142.0,141.92,48.98031613]
[1642421473501,10.5676,142.0,141.9,10.74298574]
[1642421473702,10.5676,142.0,141.9,0.17618574]
[1642421475602,80.8276,142.0,141.9,0.17618574]
[1642421476401,80.38,141.99,141.9,0.17618574]
[1642421476602,10.5708,141.97,141.86,9.33409885]
[1642421476805,10.5708,141.97,141.84,38.63863085]
[1642421476806,20.6908,141.97,141.84,38.63863085]
[1642421477007,42.0043887,141.96,141.84,38.63863085]
[1642421477203,119.1863887,141.96,141.84,38.63863085]
[1642421477403,119.1863887,141.96,141.84,14.54453085]
[1642421477604,10.5718,141.94,141.85,1.23991535]
[1642421477806,10.5718,141.94,141.84,3.97323085]
[1642421478004,10.5718,141.94,141.83,33.444]
[1642421478005,80.8318,141.94,141.83,33.444]
[1642421478205,10.12,141.93,141.82,26.67583085]
[1642421478407,62.30915196,141.93,141.82,26.67583085]
[1642421478804,10.5754,141.9,141.82,26.67583085]
[1642421479007,42.90477801,141.89,141.82,26.67583085]
[1642421479207,22.7674,141.92,141.82,44.9145]
[1642421479409,22.7674,141.92,141.82,6.0]
[1642421479906,22.7674,141.92,141.81,46.46829032]
[1642421480106,35.30798597,141.91,141.81,46.46829032]
[1642421480306,45.88218597,141.91,141.81,58.32028525]
[1642421480909,35.30798597,141.91,141.81,58.32028525]
[1642421481108,35.30798597,141.91,141.81,52.32028525]
[1642421481436,35.30798597,141.91,141.81,41.74648525]
[1642421481437,45.88228597,141.91,141.81,41.74648525]
[1642421481641,62.48728597,141.91,141.81,41.74648525]
[1642421481840,62.48728597,141.91,141.81,1.27819493]
[1642421482040,62.48728597,141.91,141.79,149.64779493]
[1642421482638,62.48728597,141.91,141.79,23.2942]
[1642421485545,56.00228597,141.91,141.79,23.2942]
[1642421486547,56.00228597,141.91,141.79,33.8703]
[1642421490650,63.77828597,141.91,141.79,23.2942]
[1642421491153,63.77828597,141.91,141.77,34.7674]
[1642421491351,24.2984,141.9,141.77,58.5441]
[1642421491551,10.5783,141.87,141.77,58.5441]
[1642421491753,37.49811296,141.86,141.77,58.5441]
[1642421491951,37.49811296,141.86,141.77,47.4667]
[1642421493254,37.49811296,141.86,141.75,10.5791]
[1642421493453,82.45461296,141.86,141.73,11.8493887]
[1642421493654,82.45461296,141.86,141.73,10.5805]
[1642421493853,82.45461296,141.86,141.72,47.6883]
[1642421494053,84.19365721,141.86,141.72,45.6883]
[1642421494255,70.26,141.85,141.72,88.4141455]
[1642421494454,70.26,141.85,141.72,100.59998881]
[1642421494455,20.7005,141.84,141.72,100.59998881]
[1642421494656,40.65606646,141.83,141.72,106.59998881]
[1642421494853,50.77606646,141.83,141.73,0.25]
[1642421495354,10.12,141.83,141.74,12.79242665]
[1642421495755,10.12,141.83,141.75,12.79242665]
[1642421495956,10.12,141.83,141.76,10.5787]
[1642421496156,10.12,141.83,141.77,37.89758059]
[1642421497556,10.12,141.83,141.78,10.577]
[1642421498966,10.12,141.87,141.78,10.577]
[1642421499259,10.12,141.91,141.79,0.25]
[1642421499459,10.12,141.91,141.82,10.5737]
[1642421499861,47.60248321,141.9,141.83,42.52952778]
[1642421500060,47.60248321,141.9,141.79,36.50929906]
[1642421500261,47.60248321,141.9,141.8,0.25]
[1642421500661,47.60248321,141.9,141.82,10.5731]
[1642421501062,47.60248321,141.9,141.83,38.85891501]
[1642421502262,47.60248321,141.9,141.79,10.12]
[1642421502462,47.60248321,141.9,141.77,32.8498]
[1642421502659,47.60248321,141.9,141.77,38.8498]
[1642421502861,47.60248321,141.9,141.77,40.11349906]
[1642421503161,47.60248321,141.9,141.78,43.63299654]
[1642421503562,47.60248321,141.9,141.82,44.12525247]
[1642421503764,47.60248321,141.9,141.81,10.5745]
[1642421504764,47.60248321,141.9,141.82,41.27544481]
[1642421505464,47.60248321,141.9,141.81,10.5745]
[1642421506464,47.60248321,141.9,141.81,56.99595963]
[1642421509870,47.60248321,141.9,141.81,10.5745]
[1642421511070,47.60248321,141.9,141.81,51.29566856]
[1642421511371,47.60248321,141.9,141.81,10.5745]
[1642421512771,47.60248321,141.9,141.82,39.02118896]
[1642421514370,47.60248321,141.9,141.79,23.6587]
[1642421514570,81.94538321,141.9,141.79,34.2347]
[1642421515600,81.94538321,141.9,141.79,23.6587]
[1642421516000,92.06538321,141.9,141.79,23.6587]
[1642421516300,10.5786,141.87,141.79,23.6587]
[1642421516699,10.5786,141.87,141.77,22.7298]
[1642421516900,10.12,141.88,141.77,22.7298]
[1642421517101,39.89344676,141.87,141.78,40.69353928]
[1642421517500,39.89344676,141.87,141.78,63.87073928]
[1642421517904,39.89344676,141.87,141.78,63.62073928]
[1642421518203,10.12,141.88,141.78,63.62073928]
[1642421518401,10.12,141.88,141.79,10.5762]
[1642421519001,10.12,141.88,141.8,0.25]
[1642421519201,52.41912634,141.88,141.8,0.25]
[1642421519702,52.41912634,141.88,141.8,10.8257]
[1642421519901,52.41912634,141.88,141.81,45.20009554]
[1642421520201,10.12,141.88,141.81,45.20009554]
[1642421521004,46.6616607,141.87,141.81,45.20009554]
[1642421521205,46.6616607,141.87,141.8,10.5757]
[1642421521808,10.12,141.91,141.8,10.5757]
[1642421522005,10.12,141.91,141.8,11.84362708]
[1642421522411,10.12,141.91,141.8,10.5757]
[1642421522912,10.5772,141.89,141.78,87.06547325]
[1642421523111,44.7994,141.89,141.78,87.06547325]
[1642421523511,44.7994,141.89,141.78,88.33340033]
[1642421523908,34.2222,141.89,141.78,88.33340033]
[1642421524113,34.2222,141.89,141.79,10.5759]
[1642421525412,34.2222,141.89,141.79,16.1099]
[1642421525610,24.1022,141.89,141.79,17.37782708]
[1642421525809,10.12,141.93,141.79,17.37782708]
[1642421526109,10.12,141.93,141.84,10.5716]
[1642421526308,10.12,141.93,141.85,44.51895082]
[1642421526309,50.72226759,141.93,141.85,44.51895082]
[1642421527309,10.12,141.93,141.85,44.51895082]
[1642421527511,3.63337581,141.97,141.86,1.51792708]
[1642421527709,13.75337581,141.97,141.86,24.49672708]
[1642421527915,13.75337581,141.97,141.87,1.26792708]
[1642421528113,10.12,141.97,141.87,1.26792708]
[1642421528309,45.88401833,141.96,141.88,49.79053165]
[1642421528710,3.63337581,141.98,141.88,49.79053165]
[1642421529510,3.63337581,141.98,141.9,10.5679]
[1642421529711,50.23691556,141.98,141.91,41.77638128]
[1642421529911,46.60353975,141.98,141.91,41.77638128]
[1642421530111,10.12,141.99,141.91,41.77638128]
[1642421530711,13.75337581,142.02,141.91,41.77638128]
[1642421530914,10.12,142.02,141.92,0.25]
[1642421531111,45.95025817,142.04,141.92,0.25]
[1642421531511,45.95025817,142.04,141.92,1.51792708]
[1642421532210,45.95025817,142.04,141.95,10.564]
[1642421532412,45.95025817,142.04,141.96,35.85684433]
[1642421532611,11.28563334,142.06,141.96,35.85684433]
[1642421533413,10.12,142.06,141.97,10.5628]
[1642421534117,51.32135059,142.08,141.97,10.5628]
[1642421534314,51.32135059,142.08,141.97,11.83928217]
[1642421534815,51.32135059,142.08,141.97,10.5628]
[1642421535416,49.42771047,142.08,141.97,10.5628]
[1642421537717,59.54771047,142.08,141.97,10.5628]
[1642421539317,59.54771047,142.08,141.97,34.2846]
[1642421540420,59.54771047,142.08,141.99,10.5611]
[1642421540622,59.54771047,142.08,142.0,44.13520062]
[1642421540822,10.12,142.08,142.0,44.13520062]
[1642421541019,24.2215,142.1,142.0,44.13520062]
[1642421541819,37.21011383,142.09,142.0,44.13520062]
[1642421542519,37.21011383,142.09,142.0,54.69580062]
[1642421543123,37.21011383,142.09,142.01,0.25]
[1642421544223,10.12,142.12,142.01,0.25]
[1642421544426,10.12,142.12,142.02,10.5588]
[1642421545423,42.81530028,142.11,142.02,10.5588]
[1642421546424,42.81530028,142.11,142.03,44.98298687]
[1642421546825,42.81530028,142.11,142.04,10.5579]
[1642421547226,10.12,142.12,142.04,10.5579]
[1642421550031,10.12,142.12,142.02,10.5591]
[1642421550228,10.12,142.12,142.02,10.8091]
[1642421550830,10.12,142.12,142.02,53.97703265]
[1642421555234,10.12,142.12,142.02,55.25040515]
[1642421556660,38.83226541,142.11,142.02,55.25040515]
[1642421556859,38.83226541,142.11,142.02,53.97703265]
[1642421559362,1.89364012,142.12,142.02,53.97703265]
[1642421559562,1.89364012,142.12,142.05,10.5567]
[1642421559767,1.89364012,142.12,142.06,0.25]
[1642421560365,41.58028524,142.12,142.03,24.5619]
[1642421560765,52.14008524,142.12,142.03,24.5619]
[1642421560965,62.26008524,142.12,141.99,22.871]
[1642421561767,22.8224,142.11,142.0,65.37952812]
[1642421561965,10.5613,142.1,142.0,75.94002812]
[1642421562166,36.41518341,142.09,142.0,75.94002812]
[1642421562465,38.30882353,142.09,142.0,75.94002812]
[1642421563466,1.89364012,142.08,142.0,75.94002812]
[1642421563865,1.89364012,142.08,142.0,23.1906]
[1642421564070,1.89364012,142.08,141.99,22.871]
[1642421564868,1.89364012,142.08,142.0,40.14962712]
[1642421565069,12.45614012,142.08,141.97,24.5878]
[1642421565269,80.38,142.07,141.96,10.5634]
[1642421565469,82.27364012,142.07,141.94,26.37266128]
[1642421565669,22.7629,142.06,141.94,26.37266128]
[1642421566070,49.61998873,142.05,141.94,37.68823853]
[1642421566270,56.61898873,142.05,141.94,37.68823853]
[1642421566871,56.61898873,142.05,141.94,35.69287725]
[1642421566872,58.51262885,142.05,141.94,35.69287725]
[1642421567670,35.92903907,142.01,141.94,35.69287725]
[1642421568873,12.01364012,142.03,141.94,35.69287725]
[1642421569071,12.01364012,142.03,141.94,36.97040903]
[1642421569473,10.12,142.03,141.94,36.97040903]
[1642421570274,10.12,142.03,141.97,10.5631]
[1642421570474,1.89364012,142.05,141.97,10.5631]
[1642421571274,37.90014389,142.05,141.98,38.21237571]
[1642421571675,37.90014389,142.05,141.97,10.5631]
[1642421572075,1.89364012,142.05,141.97,10.5631]
[1642421572476,1.89364012,142.06,141.97,10.5631]
[1642421572676,1.89364012,142.06,141.95,33.3467]
[1642421572876,10.12,142.05,141.95,33.3467]
[1642421573076,39.4384679,142.04,141.96,45.04416227]
[1642421573477,10.12,142.05,141.96,46.32169405]
[1642421573876,10.12,142.05,141.96,45.04416227]
[1642421574077,10.12,142.05,141.96,46.32169405]
[1642421574277,20.6846,142.05,141.96,45.04416227]
[1642421574479,45.04403352,142.04,141.96,45.04416227]
[1642421577279,20.6846,142.05,141.96,45.04416227]
[1642421577478,10.12,142.05,141.96,45.04416227]
[1642421577880,1.89364012,142.06,141.97,0.25]
[1642421578281,25.85144012,142.07,141.97,0.25]
[1642421578680,25.85144012,142.07,141.97,24.78443178]
[1642421579283,23.9578,142.07,141.97,24.78443178]
[1642421579483,23.9578,142.07,141.99,10.5609]
[1642421579687,23.9578,142.07,142.0,35.693886]
[1642421580387,1.89364012,142.08,142.0,35.693886]
[1642421580887,12.45604012,142.08,142.0,35.693886]
[1642421581086,43.20853155,142.07,142.0,35.693886]
[1642421582189,43.20853155,142.07,141.98,10.5619]
[1642421582387,53.77173155,142.07,141.95,23.6916]
[1642421582586,10.12,142.06,141.95,23.6916]
[1642421583220,10.12,142.06,141.96,37.08155685]
[1642421584117,12.01364012,142.06,141.96,37.08155685]
[1642421584918,22.57774012,142.06,141.96,47.64515685]
[1642421585118,20.6841,142.06,141.96,37.08155685]
[1642421587225,22.57774012,142.06,141.96,37.08155685]
[1642421588523,12.01364012,142.06,141.96,47.64525685]
[1642421588723,1.89364012,142.06,141.96,56.44178863]
[1642421588923,1.89364012,142.06,141.97,0.25]
[1642421589728,1.89364012,142.06,141.99,10.5606]
[1642421590126,1.89364012,142.07,142.0,1.52753178]
[1642421590332,1.89364012,142.07,142.0,10.38453178]
[1642421590530,1.89364012,142.07,142.01,71.53753178]
[1642421590735,1.89364012,142.07,142.02,47.37319332]
[1642421590935,1.89364012,142.07,142.02,48.9007251]
[1642421591140,1.89364012,142.09,142.03,1.27753178]
[1642421591340,1.89364012,142.09,142.04,10.8065]
[1642421591537,1.89364012,142.09,142.05,48.71706895]
[1642421592641,1.89364012,142.11,142.05,48.71706895]
[1642421593542,1.89364012,142.12,142.05,59.27406895]
[1642421593741,1.89364012,142.12,142.05,67.35806895]
[1642421593965,1.89364012,142.12,142.06,0.25]
[1642421594568,1.89364012,142.13,142.06,0.25]
[1642421595367,1.89364012,142.13,142.07,10.5545]
[1642421595567,1.89364012,142.13,142.08,38.99224227]
[1642421595767,1.89364012,142.14,142.08,39.24224227]
[1642421595967,1.89364012,142.14,142.08,46.73624227]
[1642421596868,1.89364012,142.17,142.08,46.73624227]
[1642421597472,1.89364012,142.17,142.09,10.5533]
[1642421598972,44.41225139,142.18,142.09,10.5533]
[1642421599978,1.89364012,142.17,142.09,10.5533]
[1642421611784,1.89364012,142.16,142.09,10.5533]
[1642421613588,1.89364012,142.15,142.09,10.5533]
[1642421614690,1.89364012,142.16,142.07,33.4333]
[1642421614888,12.01364012,142.16,142.03,35.1843]
[1642421615191,12.01364012,142.16,142.05,6.0]
[1642421615388,12.01364012,142.16,142.03,64.7851]
[1642421615690,12.01364012,142.16,142.04,45.13627925]
[1642421616088,12.01364012,142.16,142.04,51.13627925]
[1642421616290,1.89364012,142.14,142.05,23.4663]
[1642421616490,42.87527499,142.13,142.05,34.0228]
[1642421617495,1.89364012,142.12,142.05,34.0228]
[1642421618096,1.89364012,142.12,142.05,23.4663]
[1642421618498,1.89364012,142.12,142.04,45.13627925]
[1642421618697,1.89364012,142.12,142.05,0.25]
[1642421619301,1.89364012,142.12,142.05,10.8067]
[1642421620103,42.05111352,142.12,142.05,10.8067]
[1642421620329,1.89364012,142.11,142.05,10.8067]
[1642421622627,1.89364012,142.11,142.05,0.25]
[1642421622830,1.89364012,142.11,142.04,0.25]
[1642421624129,1.89364012,142.11,142.04,38.94914518]
[1642421624331,1.89364012,142.1,142.04,38.94914518]
[1642421624530,1.89364012,142.1,142.04,49.50674518]
[1642421626130,1.89364012,142.1,142.04,10.8076]
[1642421626330,1.89364012,142.1,142.04,10.5576]
[1642421626531,1.89364012,142.1,142.03,22.5222]
[1642421627131,1.89364012,142.1,142.03,72.09444866]
[1642421627334,1.89364012,142.09,142.03,72.09444866]
[1642421629837,1.89364012,142.09,142.03,22.5222]
[1642421630037,1.89364012,142.09,142.0,10.5604]
[1642421630238,1.89364012,142.09,141.99,13.09769572]
[1642421630239,9.40864012,142.09,141.97,34.06736365]
[1642421630445,9.40864012,142.09,141.97,23.94736365]
[1642421630446,33.30514012,142.09,141.97,23.94736365]
[1642421631039,33.30514012,142.09,141.98,48.19648437]
[1642421631440,40.4097161,142.06,141.98,58.75848437]
[1642421632240,40.4097161,142.06,141.98,60.03404802]
[1642421632941,12.45654012,142.07,141.98,60.03404802]
[1642421633144,1.89364012,142.07,141.99,0.25]
[1642421633744,1.89364012,142.07,141.98,60.03404802]
[1642421633942,42.91304977,142.06,141.98,60.03404802]
[1642421634943,42.91304977,142.06,141.99,0.25]
[1642421635344,42.91304977,142.06,141.98,60.03404802]
[1642421636143,42.91304977,142.06,141.98,49.47204802]
[1642421636551,42.91304977,142.06,141.98,1.27556365]
[1642421636748,49.11204977,142.06,141.96,33.8681]
[1642421637546,59.67564977,142.06,141.96,80.07421939]
[1642421637947,59.67564977,142.06,141.96,46.20611939]
[1642421638547,59.67564977,142.06,141.95,461.02730767]
[1642421638548,1.89364012,142.05,141.95,461.02730767]
[1642421638748,10.5664,142.02,141.95,461.02730767]
[1642421638976,16.1214,142.02,141.95,461.02730767]
[1642421639549,44.5828802,142.01,141.95,461.02730767]
[1642421640154,44.5828802,142.01,141.94,46.74172521]
[1642421640753,10.5664,142.02,141.94,46.74172521]
[1642421640958,12.45884012,142.04,141.94,46.74172521]
[1642421641156,12.45884012,142.04,141.95,0.25]
[1642421641654,1.89364012,142.03,141.95,0.25]
[1642421641955,58.94916137,142.02,141.95,14.21993295]
[1642421642154,58.94916137,142.02,141.92,22.5364]
[1642421642354,58.94916137,142.02,141.88,1.99536128]
[1642421642555,66.28520562,142.02,141.88,1.99536128]
[1642421642755,66.28520562,142.02,141.89,42.78624682]
[1642421643054,76.85170562,142.02,141.89,42.78624682]
[1642421643656,76.85170562,142.02,141.89,67.70684682]
[1642421643859,71.25470562,142.02,141.89,42.78624682]
[1642421644257,69.51566137,142.02,141.89,53.35504682]
[1642421644456,1.89364012,142.01,141.89,51.35968554]
[1642421644657,10.5686,141.99,141.89,51.35968554]
[1642421644858,10.12,141.98,141.89,51.35968554]
[1642421645262,10.12,141.98,141.9,0.25]
[1642421645557,10.12,141.98,141.91,10.5674]
[1642421645756,10.12,141.98,141.92,0.25]
[1642421647185,10.12,141.98,141.91,0.25]
[1642421647590,10.12,141.98,141.92,10.5664]
[1642421648686,22.5429,142.01,141.92,10.5664]
[1642421648687,32.6629,142.01,141.92,10.5664]
[1642421649786,32.6629,142.01,141.93,0.25]
[1642421649985,32.6629,142.01,141.94,10.565]
[1642421650187,10.12,142.01,141.94,10.565]
[1642421650787,55.32957794,142.01,141.95,36.99480023]
[1642421651188,55.32957794,142.01,141.94,10.565]
[1642421651389,55.32957794,142.01,141.92,33.1104]
[1642421652188,55.32957794,142.01,141.93,40.48758279]
[1642421652389,65.89707794,142.01,141.93,40.48758279]
[1642421652587,10.12,142.01,141.93,40.48758279]
[1642421652789,10.12,142.01,141.93,51.05318279]
[1642421652990,10.12,142.01,141.93,58.86918279]
[1642421653792,10.12,142.01,141.94,0.25]
[1642421653993,10.12,142.01,141.95,10.5642]
[1642421655596,1.89364012,142.04,141.95,10.5642]
[1642421655795,1.89364012,142.04,141.96,0.25]
[1642421655997,1.89364012,142.04,141.96,10.8134]
[1642421656797,36.12564012,142.05,141.96,10.8134]
[1642421657797,12.01364012,142.05,141.96,10.8134]
[1642421658097,12.01364012,142.05,141.96,81.0734]
[1642421658301,12.01364012,142.05,141.96,105.7604]
[1642421659299,1.89364012,142.07,141.96,105.7604]
[1642421659701,1.89364012,142.07,141.96,117.40861849]
[1642421659900,1.89364012,142.07,141.96,123.40861849]
[1642421660301,1.89364012,142.07,141.96,122.1404]
[1642421660704,38.29850186,142.07,141.96,122.1404]
[1642421661304,1.89364012,142.08,141.96,122.1404]
[1642421661904,1.89364012,142.08,141.96,121.8804]
[1642421662306,45.3075077,142.07,141.96,51.6204]
[1642421662507,45.3075077,142.07,141.96,45.6204]
[1642421662706,45.3075077,142.07,141.96,45.3704]
[1642421663106,45.3075077,142.07,141.96,35.2504]
[1642421663507,1.89364012,142.06,141.96,35.2504]
[1642421663911,1.89364012,142.06,141.96,24.687]
[1642421664108,1.73904425,142.05,141.96,24.687]
[1642421664309,10.12,142.04,141.93,40.48758279]
[1642421664509,10.12,142.04,141.94,23.0514]
[1642421664909,10.12,142.04,141.94,33.6143]
[1642421665812,12.01364012,142.04,141.95,0.25]
[1642421666010,1.89364012,142.04,141.96,10.5616]
[1642421666310,1.89364012,142.04,141.97,0.25]
[1642421667011,1.89364012,142.06,141.97,0.25]
[1642421667911,1.89364012,142.06,141.98,35.97808987]
[1642421668813,1.89364012,142.06,141.98,106.23808987]
[1642421669613,34.2279,142.08,141.98,106.23808987]
[1642421669614,1.89364012,142.07,141.98,106.23808987]
[1642421669814,1.89364012,142.07,141.99,0.25]
[1642421670214,1.89364012,142.07,141.98,35.97808987]
[1642421671416,1.89364012,142.07,141.99,0.25]
[1642421672817,1.89364012,142.07,141.98,35.97808987]
[1642421673617,1.89364012,142.07,141.99,0.25]
[1642421673815,1.89364012,142.07,141.99,23.8166]
[1642421674416,38.83786044,142.08,141.99,23.8166]
[1642421674816,38.83786044,142.08,141.99,34.3755]
[1642421675618,36.94422032,142.08,141.99,23.5666]
[1642421676019,47.06422032,142.08,141.99,23.5666]
[1642421676217,50.73602342,142.08,141.99,23.5666]
[1642421676820,52.62966354,142.08,141.99,23.5666]
[1642421677017,63.19176354,142.08,141.99,23.5666]
[1642421677917,63.19176354,142.08,141.98,35.97808987]
[1642421679521,1.89364012,142.07,141.98,35.97808987]
[1642421679720,12.01364012,142.07,141.98,35.97808987]
[1642421681623,22.57654012,142.07,141.98,35.97808987]
[1642421683029,1.89364012,142.06,141.98,35.97808987]
[1642421684528,1.89364012,142.06,141.97,24.506]
[1642421684730,1.89364012,142.06,141.96,23.9809]
[1642421684731,14.19638437,142.06,141.96,23.9809]
[1642421684932,10.12,142.05,141.94,1.99536128]
[1642421685130,32.8211,142.05,141.94,1.99536128]
[1642421685331,32.8211,142.05,141.92,25.93476128]
[1642421685531,43.24720041,142.03,141.92,68.0099654]
[1642421685730,53.81340041,142.03,141.92,25.93476128]
[1642421685931,10.12,142.02,141.92,25.93476128]
[1642421686132,17.762,142.02,141.92,25.93476128]
[1642421686332,17.762,142.02,141.92,23.9394]
[1642421686537,19.65564012,142.02,141.92,23.9394]
[1642421686734,10.5681,142.0,141.93,43.70576643]
[1642421686939,12.01364012,142.02,141.93,43.70576643]
[1642421688554,22.58044012,142.02,141.93,43.70576643]
[1642421694863,20.6868,142.02,141.93,43.70576643]
[1642421699266,10.12,142.02,141.93,43.70576643]
[1642421702666,20.6865,142.02,141.93,43.70576643]
[1642421708271,70.26,142.01,141.9,1.99536128]
[1642421708473,10.5692,141.99,141.9,1.99536128]
[1642421709373,40.34673959,141.98,141.94,66.26169802]
[1642421709574,10.5704,141.97,141.94,66.26169802]